[Event "DSAM Bad Wildungen 2024"]
[Site "Bad Wildungen"]
[Date "2024.08.02"]
[Round "3.25"]
[White "Sklorz, Tobias"]
[Black "Frisch, Thomas"]
[Result "0-1"]
[Annotator "NA RC"]
[ECO "B15"]
[WhiteElo "1843"]
[BlackElo "1792"]
[PlyCount "70"]
[EventDate "2024.07.31"]
[EventCountry "GER"]
[SourceTitle "playchess.com"]
[Source "ChessBase"]
[SourceQuality "1"]
[TimeControl "40/5400+30:900+30"]

1. e4 {[%emt 0:00:03]} c6 {[%emt 0:00:07]} 2. d4 {[%emt 0:00:05]} d5 {[%emt 0:00:03]} 3. Nc3 {[%emt 0:00:04]} dxe4 {[%emt 0:00:14]} 4. Nxe4 {[%emt 0:00:23]} Nf6 {[%emt 0:00:03]} 5. Nxf6+ {[%emt 0:00:08]} exf6 {[%emt 0:00:09]} 6. c3 {[%emt 0:00:04]} Bd6 {[%emt 0:00:13]} 7. Bd3 {[%emt 0:00:04]} O-O {[%emt 0:00:23]} 8. Qc2 {[%emt 0:00:04]} Re8+ {[%emt 0:00:25]} 9. Ne2 {[%emt 0:00:06]} h5 {[%emt 0:00:22]} 10. Be3 {[%emt 0:00:05]} Nd7 {[%emt 0:01:40]} 11. O-O-O {[%emt 0:00:17]} Nf8 {[%emt 0:01:37]} 12. Kb1 {[%emt 0:00:06]} Be6 {[%emt 0:05:34]} 13. c4 {[%emt 0:00:08]} Rc8 {[%emt 0:04:53]} 14. Nc3 {[%emt 0:00:06]} a6 {[%emt 0:06:18]} 15. h3 {[%emt 0:04:57]} Bb4 {[%emt 0:04:11]} 16. g4 {[%emt 0:15:15]} Bxc3 {[%emt 0:02:27]} 17. Qxc3 {[%emt 0:01:21]} h4 {[%emt 0:00:10]} 18. Bc2 {[%emt 0:12:44]} b5 {[%emt 0:04:55]} 19. f4 {[%emt 0:19:39]} Bxc4 {[%emt 0:04:51]} 20. g5 {[%emt 0:03:01]} Bd5 {[%emt 0:08:49]} 21. Rhg1 {[%emt 0:02:49]} Be4 {[%emt 0:07:01]} 22. Bf2 {[%emt 0:00:15]} f5 {[%emt 0:02:48]} 23. Bxh4 {[%emt 0:01:41]} g6 {[%emt 0:01:24]} 24. Bf2 {[%emt 0:03:55]} Qd6 {[%emt 0:01:22]} 25. Qg3 {[%emt 0:01:07]} Bxc2+ {[%emt 0:04:54]} 26. Kxc2 {[%emt 0:00:08]} Re2+ {[%emt 0:01:47]} 27. Rd2 {[%emt 0:00:58]} Rxd2+ {[%emt 0:01:22]} 28. Kxd2 {[%emt 0:00:05]} c5 {[%emt 0:01:27]} 29. Qe3 {[%emt 0:07:41]} Rd8 {[%emt 0:02:04]} 30. Qe5 {[%emt 0:05:30]} Qxe5 {[%emt 0:01:45]} 31. fxe5 {[%emt 0:00:04]} Ne6 {[%emt 0:01:02]} 32. Rg3 {[%emt 0:12:28]} Nxd4 {[%emt 0:08:45]} 33. Bxd4 {[%emt 0:00:14]} Rxd4+ {[%emt 0:00:19]} 34. Rd3 {[%emt 0:01:00]} Rxd3+ {[%emt 0:02:33]} 35. Kxd3 {[%emt 0:00:05]} Kf8 {[%emt 0:00:06]} 0-1

[Event "DSAM Bad Wildungen 2024"]
[Site "Bad Wildungen"]
[Date "2024.08.02"]
[Round "3.26"]
[White "Bagusat, Thomas"]
[Black "Brixius, Dirk"]
[Result "0-1"]
[Annotator "NA RC"]
[ECO "A23"]
[WhiteElo "1783"]
[BlackElo "1809"]
[PlyCount "74"]
[EventDate "2024.07.31"]
[EventCountry "GER"]
[SourceTitle "playchess.com"]
[Source "ChessBase"]
[SourceQuality "1"]
[TimeControl "40/5400+30:900+30"]

1. c4 {[%emt 0:00:04]} e5 {[%emt 0:00:14]} 2. Nc3 {[%emt 0:00:16]} Nf6 {[%emt 0:00:20]} 3. g3 {[%emt 0:00:08]} c6 {[%emt 0:00:13]} 4. e4 {[%emt 0:00:30]} Bc5 {[%emt 0:01:50]} 5. Bg2 {[%emt 0:00:40]} d6 {[%emt 0:01:31]} 6. h3 {[%emt 0:00:23]} Be6 {[%emt 0:01:29]} 7. b3 {[%emt 0:00:15]} Na6 {[%emt 0:02:54]} 8. Nge2 {[%emt 0:00:25]} Qd7 {[%emt 0:01:00]} 9. d4 {[%emt 0:00:42]} exd4 {[%emt 0:05:07]} 10. Nxd4 {[%emt 0:01:10]} Bxd4 {[%emt 0:00:49]} 11. Qxd4 {[%emt 0:00:09]} O-O {[%emt 0:07:14]} 12. O-O {[%emt 0:00:24]} Bxh3 {[%emt 0:04:20]} 13. f4 {[%emt 0:00:10]} Nb4 {[%emt 0:04:00]} 14. Qd1 {[%emt 0:02:45]} Bg4 {[%emt 0:07:31]} 15. Ne2 {[%emt 0:00:54]} c5 {[%emt 0:04:26]} 16. f5 {[%emt 0:00:32]} Rad8 {[%emt 0:05:15]} 17. Bg5 {[%emt 0:00:51]} Qe7 {[%emt 0:03:55]} 18. Rf4 {[%emt 0:00:14]} h5 {[%emt 0:03:53]} 19. a3 {[%emt 0:00:40]} Nc6 {[%emt 0:00:22]} 20. Rb1 {[%emt 0:02:38]} Nd4 {[%emt 0:03:33]} 21. Rxg4 {[%emt 0:01:00]} Nxe2+ {[%emt 0:01:15]} 22. Qxe2 {[%emt 0:00:10]} hxg4 {[%emt 0:00:26]} 23. Kf2 {[%emt 0:00:26]} Qe5 {[%emt 0:02:27]} 24. Bxf6 {[%emt 0:04:13]} Qxf6 {[%emt 0:00:03]} 25. Qxg4 {[%emt 0:00:18]} Qd4+ {[%emt 0:02:39]} 26. Ke2 {[%emt 0:00:17]} Rfe8 {[%emt 0:01:44]} 27. Rd1 {[%emt 0:01:49]} Qb2+ {[%emt 0:00:41]} 28. Rd2 {[%emt 0:00:02]} Qxb3 {[%emt 0:00:27]} 29. f6 {[%emt 0:00:22]} Qxc4+ {[%emt 0:00:52]} 30. Kd1 {[%emt 0:00:22]} g6 {[%emt 0:02:14]} 31. Qh4 {[%emt 0:01:17]} Qc3 {[%emt 0:00:52]} 32. g4 {[%emt 0:03:38]} d5 {[%emt 0:04:42]} 33. exd5 {[%emt 0:01:06]} Qb3+ {[%emt 0:01:41]} 34. Kc1 {[%emt 0:00:27]} Qxa3+ {[%emt 0:01:06]} 35. Kc2 {[%emt 0:05:09]} Re3 {[%emt 0:00:42]} 36. Be4 {[%emt 0:19:37]} Rxe4 {[%emt 0:00:23]} 37. Rh2 {[%emt 0:02:36]} Rc4+ {[%emt 0:00:54]} 0-1

[Event "DSAM Bad Wildungen 2024"]
[Site "Bad Wildungen"]
[Date "2024.08.02"]
[Round "3.27"]
[White "Dorendorf, Mika"]
[Black "Franz, Niclas"]
[Result "1/2-1/2"]
[Annotator "RC"]
[ECO "D10"]
[WhiteElo "1959"]
[BlackElo "1877"]
[PlyCount "45"]
[EventDate "2024.07.31"]
[EventCountry "GER"]
[SourceTitle "playchess.com"]
[Source "ChessBase"]
[SourceQuality "1"]
[TimeControl "40/5400+30:900+30"]

1. d4 {[%emt 0:00:02]} d5 {[%emt 0:00:28]} 2. c4 {[%emt 0:00:13]} c6 {[%emt 0:00:05]} 3. cxd5 {[%emt 0:00:04]} cxd5 {[%emt 0:00:05]} 4. Nc3 {[%emt 0:00:04]} Nc6 {[%emt 0:00:06]} 5. Bf4 {[%emt 0:00:03]} Bf5 {[%emt 0:00:10]} 6. e3 {[%emt 0:00:32]} e6 {[%emt 0:00:09]} 7. Bd3 {[%emt 0:01:17]} Bxd3 {[%emt 0:00:09]} 8. Qxd3 {[%emt 0:00:03]} Bd6 {[%emt 0:00:11]} 9. Bxd6 {[%emt 0:00:03]} Qxd6 {[%emt 0:00:05]} 10. f4 {[%emt 0:00:00]} f5 {[%emt 0:02:49]} 11. Nf3 {[%emt 0:00:39]} Nf6 {[%emt 0:00:07]} 12. O-O {[%emt 0:00:48]} O-O {[%emt 0:00:06]} 13. Rac1 {[%emt 0:00:34]} Rac8 {[%emt 0:00:39]} 14. Ne5 {[%emt 0:00:26]} a6 {[%emt 0:03:06]} 15. Na4 {[%emt 0:05:33]} Ne4 {[%emt 0:01:35]} 16. Nc5 {[%emt 0:02:47]} Nxc5 {[%emt 0:22:58]} 17. Rxc5 {[%emt 0:01:07]} Nxe5 {[%emt 0:01:58]} 18. fxe5 {[%emt 0:00:06]} Qd7 {[%emt 0:00:06]} 19. Rfc1 {[%emt 0:00:24]} Rxc5 {[%emt 0:00:07]} 20. Rxc5 {[%emt 0:00:25]} Rc8 {[%emt 0:00:06]} 21. Qc3 {[%emt 0:00:49]} Rxc5 {[%emt 0:00:09]} 22. Qxc5 {[%emt 0:00:08]} Kf7 {[%emt 0:00:05]} 23. Kf2 {[%emt 0:03:49]} 1/2-1/2

[Event "DSAM Bad Wildungen 2024"]
[Site "Bad Wildungen"]
[Date "2024.08.02"]
[Round "3.28"]
[White "Valean, David-Andrei"]
[Black "Drews, Nicolas"]
[Result "1/2-1/2"]
[Annotator "NA COMBH"]
[ECO "D00"]
[WhiteElo "1762"]
[BlackElo "1780"]
[PlyCount "28"]
[EventDate "2024.07.31"]
[EventCountry "GER"]
[SourceTitle "playchess.com"]
[Source "ChessBase"]
[SourceQuality "1"]
[TimeControl "40/5400+30:900+30"]

1. d4 {[%emt 0:00:04]} d5 {[%emt 0:00:21]} 2. Nc3 {[%emt 0:00:13]} Nf6 {[%emt 0:00:31]} 3. Bf4 {[%emt 0:00:19]} a6 {[%emt 0:00:12]} 4. e3 {[%emt 0:00:13]} c5 {[%emt 0:00:09]} 5. dxc5 {[%emt 0:01:26]} Nc6 {[%emt 0:00:43]} 6. Nf3 {[%emt 0:00:42]} Bg4 {[%emt 0:02:55]} 7. Be2 {[%emt 0:00:54]} e6 {[%emt 0:02:18]} 8. h3 {[%emt 0:06:57]} Bh5 {[%emt 0:07:07]} 9. O-O {[%emt 0:09:00]} Bxc5 {[%emt 0:01:12]} 10. Ne5 {[%emt 0:07:23]} Bxe2 {[%emt 0:09:54]} 11. Qxe2 {[%emt 0:01:50]} Nxe5 {[%emt 0:02:26]} 12. Bxe5 {[%emt 0:01:36]} Bd6 {[%emt 0:00:29]} 13. Bxd6 {[%emt 0:01:10]} Qxd6 {[%emt 0:00:08]} 14. e4 {[%emt 0:07:02]} Nxe4 {[%emt 0:13:23]} 1/2-1/2

[Event "DSAM Bad Wildungen 2024"]
[Site "Bad Wildungen"]
[Date "2024.08.02"]
[Round "3.29"]
[White "Schulze-Bergcamen, Stefan"]
[Black "Fink, Wolfgang"]
[Result "1-0"]
[Annotator "ChessBase"]
[ECO "B46"]
[WhiteElo "2042"]
[BlackElo "1846"]
[PlyCount "89"]
[EventDate "2024.07.31"]
[EventCountry "GER"]
[SourceTitle "playchess.com"]
[Source "ChessBase"]
[SourceQuality "1"]
[TimeControl "40/5400+30:900+30"]

1. e4 {[%emt 0:00:06]} c5 {[%emt 0:00:07]} 2. Nf3 {[%emt 0:00:18]} Nc6 {[%emt 0:00:04]} 3. d4 {[%emt 0:00:17]} cxd4 {[%emt 0:00:04]} 4. Nxd4 {[%emt 0:00:10]} e6 {[%emt 0:00:06]} 5. Nc3 {[%emt 0:03:27]} a6 {[%emt 0:00:07]} 6. Be3 {[%emt 0:04:07]} Bb4 {[%emt 0:00:37]} 7. Qd2 {[%emt 0:05:31]} Nge7 {[%emt 0:02:28]} 8. a3 {[%emt 0:01:39]} Qa5 {[%emt 0:03:44]} 9. Nb3 {[%emt 0:06:39]} Bxc3 {[%emt 0:01:48]} 10. Nxa5 {[%emt 0:00:21]} Bxd2+ {[%emt 0:00:41]} 11. Bxd2 {[%emt 0:00:09]} O-O {[%emt 0:02:59]} 12. Nc4 {[%emt 0:01:58]} d5 {[%emt 0:02:15]} 13. Nb6 {[%emt 0:01:40]} Rb8 {[%emt 0:02:03]} 14. exd5 {[%emt 0:07:15]} Nxd5 {[%emt 0:00:14]} 15. Nxc8 {[%emt 0:03:12]} Rbxc8 {[%emt 0:00:50]} 16. c4 {[%emt 0:14:15]} Nd4 {[%emt 0:10:33]} 17. Rc1 {[%emt 0:05:39]} Nb3 {[%emt 0:06:33]} 18. Rd1 {[%emt 0:00:46]} Nb6 {[%emt 0:03:46]} 19. Bb4 {[%emt 0:03:46]} Rfd8 {[%emt 0:03:47]} 20. Rxd8+ {[%emt 0:01:08]} Rxd8 {[%emt 0:00:01]} 21. Be2 {[%emt 0:07:08]} a5 {[%emt 0:05:54]} 22. Bc3 {[%emt 0:05:43]} Na4 {[%emt 0:01:06]} 23. Bd1 {[%emt 0:01:22]} Nxc3 {[%emt 0:05:39]} 24. Bxb3 {[%emt 0:00:12]} Ne4 {[%emt 0:00:28]} 25. O-O {[%emt 0:08:22]} Kf8 {[%emt 0:03:47]} 26. Rd1 {[%emt 0:03:43]} Rd2 {[%emt 0:03:36]} 27. Rxd2 {[%emt 0:03:13]} Nxd2 {[%emt 0:00:11]} 28. Ba2 {[%emt 0:00:18]} a4 {[%emt 0:04:23]} 29. f3 {[%emt 0:00:42]} Ke7 {[%emt 0:00:15]} 30. Kf2 {[%emt 0:01:02]} Kd6 {[%emt 0:01:21]} 31. Ke2 {[%emt 0:00:28]} Nb3 {[%emt 0:00:13]} 32. Bxb3 {[%emt 0:00:48]} axb3 {[%emt 0:00:06]} 33. Kd3 {[%emt 0:00:45]} h5 {[%emt 0:00:25]} 34. Kc3 {[%emt 0:02:36]} g5 {[%emt 0:10:31]} 35. Kxb3 {[%emt 0:01:45]} Ke5 {[%emt 0:00:19]} 36. Kc3 {[%emt 0:01:57]} g4 {[%emt 0:01:17]} 37. Kd3 {[%emt 0:02:18]} f5 {[%emt 0:01:46]} 38. b4 {[%emt 0:02:58]} Kf4 {[%emt 0:01:08]} 39. fxg4 {[%emt 0:01:22]} hxg4 {[%emt 0:01:26]} 40. c5 {[%emt 0:00:51]} Ke5 {[%emt 0:01:38]} 41. h4 {[%emt 0:03:55]} gxh3 {[%emt 0:00:39]} 42. gxh3 {[%emt 0:00:06]} Kf4 {[%emt 0:00:32]} 43. b5 {[%emt 0:02:53]} Kg3 {[%emt 0:07:33]} 44. c6 {[%emt 0:01:17]} bxc6 {[%emt 0:00:06]} 45. b6 {[%emt 0:01:05]} 1-0

[Event "DSAM Bad Wildungen 2024"]
[Site "Bad Wildungen"]
[Date "2024.08.02"]
[Round "3.31"]
[White "Sviridov, Vitaliy"]
[Black "Koehler, Wilhelm"]
[Result "1-0"]
[Annotator "NA RC"]
[ECO "D02"]
[WhiteElo "1771"]
[BlackElo "1829"]
[PlyCount "104"]
[EventDate "2024.07.31"]
[EventCountry "GER"]
[SourceTitle "playchess.com"]
[Source "ChessBase"]
[SourceQuality "1"]
[TimeControl "40/5400+30:900+30"]

1. d4 {[%emt 0:01:01]} Nf6 {[%emt 0:00:01]} 2. Bf4 {[%emt 0:00:03]} d5 {[%emt 0:00:03]} 3. e3 {[%emt 0:00:13]} c5 {[%emt 0:00:04]} 4. Nf3 {[%emt 0:01:38]} Nc6 {[%emt 0:00:09]} 5. Nbd2 {[%emt 0:01:34]} Qb6 {[%emt 0:00:18]} 6. dxc5 {[%emt 0:03:10]} Qxb2 {[%emt 0:00:02]} 7. Nb3 {[%emt 0:01:14]} e5 {[%emt 0:07:08]} 8. Bg5 {[%emt 0:02:50]} Qc3+ {[%emt 0:02:27]} 9. Qd2 {[%emt 0:01:20]} Qxd2+ {[%emt 0:01:07]} 10. Nfxd2 {[%emt 0:00:11]} Nd7 {[%emt 0:00:30]} 11. O-O-O {[%emt 0:01:58]} f6 {[%emt 0:01:12]} 12. Bh4 {[%emt 0:00:03]} Nxc5 {[%emt 0:01:52]} 13. f4 {[%emt 0:00:32]} Ne4 14. Nxe4 {[%emt 0:00:38]} dxe4 {[%emt 0:04:54]} 15. Bc4 {[%emt 0:02:04]} exf4 {[%emt 0:06:13]} 16. exf4 {[%emt 0:01:42]} Bd7 {[%emt 0:04:31]} 17. Rhe1 {[%emt 0:00:18]} O-O-O {[%emt 0:09:39]} 18. Rxe4 {[%emt 0:01:39]} Ba3+ {[%emt 0:00:18]} 19. Kb1 {[%emt 0:00:07]} Bf5 {[%emt 0:02:22]} 20. Ree1 {[%emt 0:02:53]} Nb4 {[%emt 0:02:10]} 21. Nd4 {[%emt 0:02:23]} Bg4 {[%emt 0:13:53]} 22. Be6+ {[%emt 0:06:14]} Bxe6 {[%emt 0:00:33]} 23. Nxe6 {[%emt 0:01:11]} Rxd1+ {[%emt 0:01:23]} 24. Rxd1 {[%emt 0:00:01]} Re8 {[%emt 0:03:42]} 25. f5 {[%emt 0:02:36]} g5 {[%emt 0:03:01]} 26. Bf2 {[%emt 0:05:44]} Nc6 {[%emt 0:00:23]} 27. Rd3 {[%emt 0:04:04]} Be7 {[%emt 0:01:30]} 28. Be1 {[%emt 0:03:26]} Nd8 {[%emt 0:02:56]} 29. Rc3+ {[%emt 0:01:06]} Nc6 {[%emt 0:00:47]} 30. Rh3 {[%emt 0:00:37]} Nd8 {[%emt 0:04:10]} 31. Rc3+ {[%emt 0:08:04]} Nc6 {[%emt 0:00:02]} 32. g4 {[%emt 0:01:44]} Bb4 {[%emt 0:00:28]} 33. Rxc6+ {[%emt 0:01:44]} bxc6 {[%emt 0:00:28]} 34. Bxb4 {[%emt 0:00:04]} Kd7 {[%emt 0:00:35]} 35. Kc1 {[%emt 0:03:33]} Rxe6 {[%emt 0:01:01]} 36. fxe6+ {[%emt 0:00:02]} Kxe6 {[%emt 0:00:17]} 37. Kd2 {[%emt 0:00:40]} f5 {[%emt 0:00:02]} 38. gxf5+ {[%emt 0:00:24]} Kxf5 {[%emt 0:00:02]} 39. Ke3 {[%emt 0:00:26]} h5 {[%emt 0:00:32]} 40. Bd6 {[%emt 0:01:11]} Ke6 {[%emt 0:01:09]} 41. Bb8 {[%emt 0:15:05]} a6 {[%emt 0:15:13]} 42. Kd4 {[%emt 0:00:31]} Kd7 {[%emt 0:00:27]} 43. a4 {[%emt 0:00:09]} h4 {[%emt 0:00:17]} 44. h3 {[%emt 0:00:13]} Kc8 {[%emt 0:00:16]} 45. Be5 {[%emt 0:00:13]} Kb7 {[%emt 0:00:12]} 46. Kc5 {[%emt 0:00:03]} a5 {[%emt 0:00:33]} 47. c4 {[%emt 0:00:10]} Ka6 {[%emt 0:00:29]} 48. Kxc6 {[%emt 0:00:07]} Ka7 {[%emt 0:00:06]} 49. c5 {[%emt 0:00:08]} Ka6 {[%emt 0:00:08]} 50. Kd7 {[%emt 0:00:05]} g4 {[%emt 0:00:54]} 51. hxg4 {[%emt 0:00:10]} h3 {[%emt 0:00:04]} 52. c6 {[%emt 0:00:12]} h2 {[%emt 0:00:42]} 1-0

[Event "DSAM Bad Wildungen 2024"]
[Site "Bad Wildungen"]
[Date "2024.08.02"]
[Round "3.32"]
[White "Krueger, Malte"]
[Black "Lerch, Cornelia"]
[Result "1-0"]
[Annotator "NA RC"]
[ECO "B22"]
[WhiteElo "1739"]
[BlackElo "1847"]
[PlyCount "73"]
[EventDate "2024.07.31"]
[EventCountry "GER"]
[SourceTitle "playchess.com"]
[Source "ChessBase"]
[SourceQuality "1"]
[TimeControl "40/5400+30:900+30"]

1. e4 {[%emt 0:00:03]} c5 {[%emt 0:00:04]} 2. c3 {[%emt 0:00:05]} Nf6 {[%emt 0:00:44]} 3. e5 {[%emt 0:00:13]} Nd5 {[%emt 0:00:06]} 4. d4 {[%emt 0:00:41]} cxd4 {[%emt 0:00:07]} 5. cxd4 {[%emt 0:00:04]} e6 {[%emt 0:00:18]} 6. Nc3 {[%emt 0:01:42]} Nb6 {[%emt 0:00:42]} 7. Nf3 {[%emt 0:01:04]} d6 {[%emt 0:00:08]} 8. Bd2 {[%emt 0:07:03]} dxe5 {[%emt 0:00:21]} 9. dxe5 {[%emt 0:00:11]} Nc6 {[%emt 0:00:31]} 10. Qc2 {[%emt 0:05:42]} Nb4 {[%emt 0:06:35]} 11. Qe4 {[%emt 0:02:22]} N4d5 {[%emt 0:01:16]} 12. a3 {[%emt 0:03:58]} Be7 {[%emt 0:00:25]} 13. Be2 {[%emt 0:03:07]} O-O {[%emt 0:01:21]} 14. O-O {[%emt 0:03:29]} Bd7 {[%emt 0:02:14]} 15. Rac1 {[%emt 0:09:56]} Bc6 {[%emt 0:02:23]} 16. Qg4 {[%emt 0:03:13]} Re8 {[%emt 0:01:27]} 17. h4 {[%emt 0:09:20]} Bf8 {[%emt 0:02:30]} 18. Ne4 {[%emt 0:09:29]} f5 {[%emt 0:02:51]} 19. exf6 {[%emt 0:00:09]} Nxf6 {[%emt 0:00:27]} 20. Nxf6+ {[%emt 0:00:18]} Qxf6 {[%emt 0:00:21]} 21. Bc3 {[%emt 0:00:49]} Qf7 {[%emt 0:01:20]} 22. Ne5 {[%emt 0:02:02]} Qf5 {[%emt 0:01:49]} 23. Nxc6 {[%emt 0:00:59]} bxc6 {[%emt 0:01:06]} 24. Rfe1 {[%emt 0:03:23]} Kh8 {[%emt 0:03:21]} 25. h5 {[%emt 0:01:34]} h6 {[%emt 0:00:50]} 26. Bf3 {[%emt 0:01:38]} Nd5 {[%emt 0:01:44]} 27. Bd4 {[%emt 0:01:47]} a6 {[%emt 0:01:14]} 28. Rxc6 {[%emt 0:01:33]} Qf7 {[%emt 0:09:45]} 29. Rcxe6 {[%emt 0:02:01]} Rxe6 {[%emt 0:00:17]} 30. Qxe6 {[%emt 0:02:30]} Qxe6 {[%emt 0:00:30]} 31. Rxe6 {[%emt 0:00:05]} Rd8 {[%emt 0:00:22]} 32. Rxh6+ {[%emt 0:00:29]} Kg8 {[%emt 0:02:29]} 33. Rxa6 {[%emt 0:03:49]} Nf4 {[%emt 0:01:43]} 34. Bc3 {[%emt 0:01:02]} Rc8 {[%emt 0:01:54]} 35. a4 {[%emt 0:01:39]} Nd3 {[%emt 0:02:40]} 36. Bd5+ {[%emt 0:00:29]} Kh8 {[%emt 0:00:24]} 37. Rh6# {[%emt 0:21:02]} 1-0

[Event "DSAM Bad Wildungen 2024"]
[Site "Bad Wildungen"]
[Date "2024.08.02"]
[Round "3.33"]
[White "Espenhahn, Joerg"]
[Black "Bauch, Martin"]
[Result "1-0"]
[Annotator "RC"]
[ECO "A03"]
[WhiteElo "1788"]
[BlackElo "1927"]
[PlyCount "67"]
[EventDate "2024.07.31"]
[EventCountry "GER"]
[SourceTitle "playchess.com"]
[Source "ChessBase"]
[SourceQuality "1"]
[TimeControl "40/5400+30:900+30"]

1. f4 {[%emt 0:00:05]} d5 {[%emt 0:00:30]} 2. Nf3 {[%emt 0:00:05]} Nf6 {[%emt 0:00:36]} 3. e3 {[%emt 0:00:16]} c5 {[%emt 0:00:21]} 4. Bb5+ {[%emt 0:00:18]} Nc6 {[%emt 0:00:23]} 5. O-O {[%emt 0:00:32]} a6 {[%emt 0:01:22]} 6. Bxc6+ {[%emt 0:00:06]} bxc6 {[%emt 0:00:06]} 7. b3 {[%emt 0:00:05]} Bg4 {[%emt 0:01:23]} 8. Qe1 {[%emt 0:00:10]} Bxf3 {[%emt 0:00:56]} 9. Rxf3 {[%emt 0:00:08]} e6 {[%emt 0:04:00]} 10. Bb2 {[%emt 0:00:55]} Rb8 {[%emt 0:01:18]} 11. d3 {[%emt 0:00:38]} Be7 {[%emt 0:01:42]} 12. Nd2 {[%emt 0:00:08]} O-O {[%emt 0:02:40]} 13. Rh3 {[%emt 0:00:21]} Ne8 {[%emt 0:07:22]} 14. Nf3 {[%emt 0:00:30]} Bf6 {[%emt 0:04:00]} 15. Ne5 {[%emt 0:01:15]} Qc7 {[%emt 0:00:57]} 16. Qe2 {[%emt 0:03:44]} Rd8 {[%emt 0:03:05]} 17. Qh5 {[%emt 0:01:16]} h6 {[%emt 0:00:13]} 18. g4 {[%emt 0:08:37]} d4 {[%emt 0:03:38]} 19. exd4 {[%emt 0:09:35]} cxd4 {[%emt 0:00:11]} 20. Re1 {[%emt 0:04:41]} Rd5 {[%emt 0:15:15]} 21. Bc1 {[%emt 0:09:10]} Qa5 {[%emt 0:09:53]} 22. Kf1 {[%emt 0:04:02]} Nd6 {[%emt 0:02:37]} 23. a4 {[%emt 0:08:19]} Qc3 {[%emt 0:00:57]} 24. Re2 {[%emt 0:04:15]} Qa1 {[%emt 0:00:46]} 25. Re1 {[%emt 0:00:28]} Qc3 {[%emt 0:00:07]} 26. Re2 {[%emt 0:00:13]} Qa1 {[%emt 0:00:32]} 27. Re1 {[%emt 0:00:43]} Qb1 {[%emt 0:02:35]} 28. Ba3 {[%emt 0:03:16]} Qxc2 {[%emt 0:00:46]} 29. Bxd6 {[%emt 0:00:08]} Rxd6 {[%emt 0:36:49]} 30. g5 {[%emt 0:41:31]} Bxe5 {[%emt 0:00:00]} 31. gxh6 {[%emt 0:00:00]} Rfd8 {[%emt 0:00:00]} 32. fxe5 {[%emt 0:00:00]} g6 {[%emt 0:00:00]} 33. h7+ {[%emt 0:00:00]} Kh8 {[%emt 0:00:00]} 34. Qg5 {[%emt 0:00:00]} 1-0

[Event "DSAM Bad Wildungen 2024"]
[Site "Bad Wildungen"]
[Date "2024.08.02"]
[Round "3.34"]
[White "Dolidze, David"]
[Black "Schmitt, Philipp"]
[Result "1/2-1/2"]
[Annotator "RC"]
[ECO "C02"]
[WhiteElo "1720"]
[BlackElo "2170"]
[PlyCount "140"]
[EventDate "2024.07.31"]
[EventCountry "GER"]
[SourceTitle "playchess.com"]
[Source "ChessBase"]
[SourceQuality "1"]
[TimeControl "40/5400+30:900+30"]

1. e4 {[%emt 0:00:04]} e6 {[%emt 0:00:12]} 2. d4 {[%emt 0:00:03]} d5 {[%emt 0:00:07]} 3. e5 {[%emt 0:00:09]} c5 {[%emt 0:00:14]} 4. c3 {[%emt 0:00:38]} Nc6 {[%emt 0:00:28]} 5. Nf3 {[%emt 0:00:08]} h6 {[%emt 0:01:31]} 6. Bd3 {[%emt 0:00:57]} c4 {[%emt 0:01:47]} 7. Bc2 {[%emt 0:00:28]} b5 {[%emt 0:01:05]} 8. O-O {[%emt 0:01:10]} b4 {[%emt 0:03:14]} 9. Re1 {[%emt 0:03:46]} bxc3 {[%emt 0:00:42]} 10. Nxc3 {[%emt 0:00:26]} Bb4 {[%emt 0:00:26]} 11. Bd2 {[%emt 0:10:03]} Bxc3 {[%emt 0:04:46]} 12. Bxc3 {[%emt 0:02:20]} Nge7 {[%emt 0:00:38]} 13. h4 {[%emt 0:03:26]} Bd7 {[%emt 0:03:25]} 14. Qd2 {[%emt 0:03:58]} Qb6 {[%emt 0:02:14]} 15. g3 {[%emt 0:01:05]} a5 {[%emt 0:01:44]} 16. b3 {[%emt 0:06:28]} cxb3 {[%emt 0:03:40]} 17. axb3 {[%emt 0:00:17]} O-O {[%emt 0:00:56]} 18. Qd3 {[%emt 0:03:19]} g6 {[%emt 0:03:00]} 19. Qe3 {[%emt 0:02:28]} Kg7 {[%emt 0:04:28]} 20. Qf4 {[%emt 0:10:21]} f5 {[%emt 0:07:38]} 21. Qd2 {[%emt 0:10:39]} Nb4 {[%emt 0:05:00]} 22. Reb1 {[%emt 0:00:57]} Nxc2 {[%emt 0:04:23]} 23. Qxc2 {[%emt 0:01:13]} Rfc8 {[%emt 0:01:15]} 24. Qd2 {[%emt 0:00:25]} Nc6 {[%emt 0:01:19]} 25. Ne1 {[%emt 0:02:36]} Rc7 {[%emt 0:03:17]} 26. Kg2 {[%emt 0:03:04]} Rca7 {[%emt 0:00:45]} 27. Rb2 {[%emt 0:02:21]} Nb4 {[%emt 0:02:34]} 28. Bxb4 {[%emt 0:00:24]} Qxb4 {[%emt 0:00:31]} 29. Qxb4 {[%emt 0:00:22]} axb4 {[%emt 0:00:07]} 30. Rxa7 {[%emt 0:00:03]} Rxa7 {[%emt 0:00:07]} 31. Nd3 {[%emt 0:00:08]} Rb7 {[%emt 0:05:59]} 32. Ra2 {[%emt 0:00:08]} Kf7 {[%emt 0:00:48]} 33. Nc5 {[%emt 0:01:00]} Rc7 {[%emt 0:00:10]} 34. Ra6 {[%emt 0:00:21]} Ke7 {[%emt 0:01:27]} 35. Rb6 {[%emt 0:00:23]} g5 {[%emt 0:01:02]} 36. hxg5 {[%emt 0:00:13]} hxg5 {[%emt 0:00:07]} 37. Rxb4 {[%emt 0:00:06]} Ra7 {[%emt 0:00:51]} 38. Rb7 {[%emt 0:00:48]} Rxb7 {[%emt 0:00:16]} 39. Nxb7 {[%emt 0:00:04]} Bc8 {[%emt 0:02:14]} 40. Nc5 {[%emt 0:00:25]} Bd7 {[%emt 0:00:43]} 41. Nxd7 {[%emt 0:16:22]} Kxd7 {[%emt 0:15:06]} 42. Kf1 {[%emt 0:00:05]} Kc6 {[%emt 0:00:26]} 43. Ke2 {[%emt 0:00:05]} Kb5 {[%emt 0:00:46]} 44. Kd3 {[%emt 0:00:06]} Kb4 {[%emt 0:00:15]} 45. Kc2 {[%emt 0:00:05]} Ka3 {[%emt 0:00:49]} 46. f4 {[%emt 0:01:28]} gxf4 {[%emt 0:01:11]} 47. gxf4 {[%emt 0:00:05]} Kb4 {[%emt 0:00:31]} 48. Kb2 {[%emt 0:00:04]} Ka5 {[%emt 0:00:29]} 49. Ka3 {[%emt 0:01:00]} Kb5 {[%emt 0:00:12]} 50. b4 {[%emt 0:02:11]} Kc4 {[%emt 0:00:40]} 51. Ka4 {[%emt 0:00:06]} Kxd4 {[%emt 0:00:08]} 52. Ka5 {[%emt 0:00:05]} Ke4 {[%emt 0:02:10]} 53. b5 {[%emt 0:00:19]} d4 {[%emt 0:02:13]} 54. b6 {[%emt 0:00:08]} d3 {[%emt 0:00:04]} 55. b7 {[%emt 0:00:02]} d2 {[%emt 0:00:05]} 56. b8=Q {[%emt 0:00:05]} d1=Q {[%emt 0:00:09]} 57. Qd6 {[%emt 0:00:59]} Qa1+ {[%emt 0:01:24]} 58. Kb6 {[%emt 0:00:37]} Kxf4 {[%emt 0:00:19]} 59. Qxe6 {[%emt 0:02:32]} Qxe5 {[%emt 0:02:21]} 60. Qh6+ {[%emt 0:00:48]} Ke4 {[%emt 0:00:44]} 61. Qh1+ {[%emt 0:00:54]} Kd4 {[%emt 0:01:15]} 62. Qd1+ {[%emt 0:00:24]} Ke4 {[%emt 0:00:59]} 63. Qh1+ {[%emt 0:00:10]} Kd3 {[%emt 0:01:16]} 64. Qd1+ {[%emt 0:00:11]} Kc4 {[%emt 0:00:15]} 65. Qa4+ {[%emt 0:00:12]} Kd5 {[%emt 0:03:39]} 66. Qc6+ {[%emt 0:04:04]} Kd4 {[%emt 0:00:09]} 67. Qa4+ {[%emt 0:00:30]} Ke3 {[%emt 0:00:48]} 68. Qb3+ {[%emt 0:01:31]} Kf4 {[%emt 0:01:00]} 69. Kb7 {[%emt 0:02:01]} Qe3 {[%emt 0:02:04]} 70. Qf7 {[%emt 0:04:39]} Qe4+ {[%emt 0:23:53]} 1/2-1/2